[Event "Portuguese Chess-ch 2022"]
[Site "Leiria"]
[Date "2022.09.18"]
[Round "8.3"]
[White "Veiga, Jose Francisco R P N"]
[Black "Guilherme Santos, Jose"]
[Result "1/2-1/2"]
[ECO "B15"]
[WhiteElo "2389"]
[BlackElo "2384"]
[Annotator "ChessBase"]
[PlyCount "161"]
[EventDate "2022.09.11"]
[EventCountry "POR"]
[SourceTitle "playchess.com"]
[Source "ChessBase"]
[SourceQuality "1"]
[TimeControl "5400+30"]

1. e4 {[%emt 0:01:18]} c6 {[%emt 0:02:57]} 2. Nc3 {[%emt 0:00:22]} d5 {[%emt 0:00:48]} 3. d4 {[%emt 0:00:43]} dxe4 {[%emt 0:00:09]} 4. Nxe4 {[%emt 0:00:07]} Nf6 {[%emt 0:00:08]} 5. Nxf6+ {[%emt 0:00:33]} exf6 {[%emt 0:00:10]} 6. Be3 {[%emt 0:00:09]} Na6 {[%emt 0:01:55]} 7. a3 {[%emt 0:11:52]} Nc7 {[%emt 0:00:27]} 8. c4 {[%emt 0:00:44]} g6 {[%emt 0:00:05]} 9. g3 {[%emt 0:07:43]} Bg7 {[%emt 0:09:16]} 10. Bg2 {[%emt 0:00:36]} O-O {[%emt 0:00:10]} 11. Ne2 {[%emt 0:01:44]} Bg4 {[%emt 0:00:08]} 12. h3 {[%emt 0:01:34]} Bxe2 {[%emt 0:21:11]} 13. Qxe2 {[%emt 0:00:43]} Re8 {[%emt 0:05:03]} 14. Qd2 {[%emt 0:04:53]} Ne6 {[%emt 0:10:32]} 15. O-O {[%emt 0:01:08]} Ng5 {[%emt 0:00:55]} 16. f3 {[%emt 0:16:17]} Qd6 {[%emt 0:05:28]} 17. Kh2 {[%emt 0:04:42]} Qe6 {[%emt 0:01:02]} 18. Rfe1 {[%emt 0:07:36]} Qxc4 {[%emt 0:02:18]} 19. Rac1 {[%emt 0:00:06]} Qd5 {[%emt 0:02:59]} 20. Qf2 {[%emt 0:00:16]} Qd6 {[%emt 0:00:13]} 21. Rcd1 {[%emt 0:09:24]} Qd7 {[%emt 0:08:22]} 22. d5 {[%emt 0:05:53]} cxd5 {[%emt 0:00:35]} 23. Qd2 {[%emt 0:00:38]} Rad8 {[%emt 0:04:43]} 24. Bxa7 {[%emt 0:00:54]} Rxe1 {[%emt 0:00:05]} 25. Qxe1 {[%emt 0:00:16]} f5 {[%emt 0:05:21]} 26. Qd2 {[%emt 0:02:59]} Ne6 {[%emt 0:00:05]} 27. Bb6 {[%emt 0:00:50]} Rc8 {[%emt 0:00:08]} 28. Qxd5 {[%emt 0:01:20]} Qxd5 {[%emt 0:05:46]} 29. Rxd5 {[%emt 0:00:01]} Rc2 {[%emt 0:00:13]} 30. b4 {[%emt 0:02:53]} f4 {[%emt 0:00:14]} 31. g4 {[%emt 0:02:03]} Ra2 {[%emt 0:04:38]} 32. Rd3 {[%emt 0:01:46]} Bf6 {[%emt 0:00:37]} 33. b5 {[%emt 0:01:50]} Be7 {[%emt 0:03:02]} 34. Rd7 {[%emt 0:00:48]} Bxa3 {[%emt 0:00:05]} 35. Rxb7 {[%emt 0:00:06]} Rb2 {[%emt 0:00:22]} 36. Rb8+ {[%emt 0:03:25]} Kg7 {[%emt 0:01:35]} 37. Ba5 {[%emt 0:00:37]} Bb4 {[%emt 0:00:03]} 38. Bb6 {[%emt 0:00:56]} Bd6 {[%emt 0:00:58]} 39. Rd8 {[%emt 0:01:27]} Bc5 {[%emt 0:01:44]} 40. Ba5 {[%emt 0:00:00]} Bb4 {[%emt 0:00:00]} 41. Bb6 {[%emt 0:00:00]} Bc5 {[%emt 0:00:00]} 42. Bxc5 {[%emt 0:00:00]} Nxc5 {[%emt 0:00:00]} 43. Rd4 {[%emt 0:00:00]} Ne6 {[%emt 0:00:00]} 44. Rd5 {[%emt 0:00:00]} Nc7 {[%emt 0:00:00]} 45. Rd4 {[%emt 0:00:00]} g5 {[%emt 0:00:00]} 46. h4 {[%emt 0:00:00]} h6 {[%emt 0:00:00]} 47. hxg5 {[%emt 0:00:00]} hxg5 {[%emt 0:00:00]} 48. Kg1 {[%emt 0:00:00]} Rxb5 {[%emt 0:00:00]} 49. Bf1 {[%emt 0:00:00]} Rb1 {[%emt 0:00:00]} 50. Kf2 {[%emt 0:00:00]} Rb2+ {[%emt 0:00:00]} 51. Ke1 {[%emt 0:00:00]} Ne6 {[%emt 0:00:00]} 52. Rd5 {[%emt 0:00:00]} Kf8 {[%emt 0:00:00]} 53. Bd3 {[%emt 0:00:00]} Ke7 {[%emt 0:00:00]} 54. Bf5 {[%emt 0:00:00]} Nf8 {[%emt 0:00:00]} 55. Be4 {[%emt 0:00:00]} Ne6 {[%emt 0:00:00]} 56. Bf5 {[%emt 0:00:00]} Nd8 {[%emt 0:00:00]} 57. Bd3 {[%emt 0:00:00]} f6 {[%emt 0:00:00]} 58. Bf5 {[%emt 0:00:00]} Rb7 {[%emt 0:00:00]} 59. Rd2 {[%emt 0:00:00]} Nf7 {[%emt 0:00:00]} 60. Rh2 {[%emt 0:00:00]} Ra7 {[%emt 0:00:00]} 61. Rb2 {[%emt 0:00:00]} Ne5 {[%emt 0:00:00]} 62. Be4 {[%emt 0:00:00]} Ra4 {[%emt 0:00:00]} 63. Rb7+ {[%emt 0:00:00]} Kd6 {[%emt 0:00:00]} 64. Rb6+ {[%emt 0:00:00]} Kc5 {[%emt 0:00:00]} 65. Rxf6 {[%emt 0:00:00]} Kd4 {[%emt 0:02:56]} 66. Rf5 {[%emt 0:02:06]} Ra5 {[%emt 0:04:51]} 67. Kf2 {[%emt 0:02:19]} Nxg4+ {[%emt 0:01:04]} 68. fxg4 {[%emt 0:00:11]} Ra2+ {[%emt 0:00:03]} 69. Kf3 {[%emt 0:02:31]} Ra3+ {[%emt 0:00:07]} 70. Kg2 {[%emt 0:00:07]} Kxe4 {[%emt 0:00:03]} 71. Rxg5 {[%emt 0:00:08]} Ra2+ {[%emt 0:00:02]} 72. Kh3 {[%emt 0:01:41]} Ra3+ {[%emt 0:03:39]} 73. Kh4 {[%emt 0:01:26]} Ra8 {[%emt 0:01:41]} 74. Rf5 {[%emt 0:01:05]} Rh8+ {[%emt 0:00:30]} 75. Kg5 {[%emt 0:00:05]} f3 {[%emt 0:01:42]} 76. Rf7 {[%emt 0:00:45]} Ke3 {[%emt 0:01:00]} 77. Kg6 {[%emt 0:04:49]} Rh4 {[%emt 0:00:10]} 78. Kg5 {[%emt 0:00:15]} Rh3 {[%emt 0:00:15]} 79. Kg6 {[%emt 0:00:13]} f2 {[%emt 0:00:05]} 80. Rxf2 {[%emt 0:00:05]} Kxf2 {[%emt 0:00:02]} 81. g5 {[%emt 0:00:29]} 1/2-1/2

[Event "Portuguese Chess-ch 2022"]
[Site "Leiria"]
[Date "2022.09.18"]
[Round "8.4"]
[White "Sousa, Andre"]
[Black "Dias, Paulo"]
[Result "1-0"]
[ECO "C02"]
[WhiteElo "2449"]
[BlackElo "2341"]
[Annotator "ChessBase"]
[PlyCount "63"]
[EventDate "2022.09.11"]
[EventCountry "POR"]
[SourceTitle "playchess.com"]
[Source "ChessBase"]
[SourceQuality "1"]
[TimeControl "5400+30"]

1. e4 {[%emt 0:00:02]} e6 {[%emt 0:00:17]} 2. d4 {[%emt 0:00:05]} d5 {[%emt 0:00:05]} 3. e5 {[%emt 0:00:02]} c5 {[%emt 0:00:09]} 4. c3 {[%emt 0:00:03]} Nc6 {[%emt 0:00:05]} 5. Nf3 {[%emt 0:00:03]} Qb6 {[%emt 0:00:07]} 6. Bd3 {[%emt 0:00:04]} Bd7 {[%emt 0:00:30]} 7. O-O {[%emt 0:00:05]} cxd4 {[%emt 0:00:11]} 8. Re1 {[%emt 0:00:13]} Nge7 {[%emt 0:00:23]} 9. h4 {[%emt 0:00:03]} Rc8 {[%emt 0:00:51]} 10. Nbd2 {[%emt 0:00:47]} dxc3 {[%emt 0:03:01]} 11. bxc3 {[%emt 0:00:14]} Na5 {[%emt 0:01:59]} 12. Rb1 {[%emt 0:00:08]} Qc7 {[%emt 0:02:07]} 13. Bb2 {[%emt 0:00:03]} h6 {[%emt 0:08:54]} 14. Rc1 {[%emt 0:05:22]} Nec6 {[%emt 0:12:01]} 15. c4 {[%emt 0:13:48]} Nb4 {[%emt 0:05:25]} 16. cxd5 {[%emt 0:24:59]} Qxc1 {[%emt 0:01:35]} 17. Bxc1 {[%emt 0:00:07]} Nxd3 {[%emt 0:00:08]} 18. Ne4 {[%emt 0:12:09]} Nxe1 {[%emt 0:15:18]} 19. Qxe1 {[%emt 0:00:19]} exd5 {[%emt 0:01:14]} 20. Nd6+ {[%emt 0:00:05]} Bxd6 {[%emt 0:00:36]} 21. exd6+ {[%emt 0:00:05]} Be6 {[%emt 0:00:46]} 22. Ne5 {[%emt 0:01:40]} O-O {[%emt 0:08:46]} 23. Bb2 {[%emt 0:06:04]} b6 {[%emt 0:09:39]} 24. Ng6 {[%emt 0:03:49]} fxg6 {[%emt 0:10:32]} 25. Qxe6+ {[%emt 0:00:21]} Kh7 {[%emt 0:00:25]} 26. h5 {[%emt 0:03:32]} gxh5 {[%emt 0:02:25]} 27. Qd7 {[%emt 0:01:10]} Kg6 {[%emt 0:07:35]} 28. Qxg7+ {[%emt 0:00:27]} Kf5 {[%emt 0:00:07]} 29. Qe5+ {[%emt 0:00:03]} Kg6 {[%emt 0:00:54]} 30. Qe6+ {[%emt 0:00:15]} Kh7 {[%emt 0:03:19]} 31. g4 {[%emt 0:00:40]} hxg4 {[%emt 0:01:12]} 32. Qd7+ {[%emt 0:00:06]} 1-0

[Event "Portuguese Chess-ch 2022"]
[Site "Leiria"]
[Date "2022.09.19"]
[Round "9.1"]
[White "Guilherme Santos, Jose"]
[Black "Sousa, Andre"]
[Result "1/2-1/2"]
[ECO "E11"]
[WhiteElo "2384"]
[BlackElo "2449"]
[Annotator "TA"]
[PlyCount "108"]
[EventDate "2022.09.11"]
[EventCountry "POR"]
[SourceTitle "playchess.com"]
[Source "ChessBase"]
[SourceQuality "1"]
[TimeControl "5400+30"]

{[%evp 10,108,14,15,28,16,13,0,0,0,20,0,0,0,-13,-2,0,-11,0,0,0,0,52,0,6,0,0,0,0,-983,-139,-960,-7,-22,-12,-35,-53,-30,-48,-47,-26,-156,-141,-230,-214,-218,-137,-135,-135,-146,-116,-96,-95,-81,-61,-68,-71,-71,20,10,16,0,0,0,0,0,0,0,0,-51,0,-68,-85,-53,-75,-73,-62,-73,-72,-70,0,0,0,0,0,0,0,-36,0,0,0,0,0,0,0,0,0,0,0,0,0]} 1. d4 {[%emt 0:09:13]} Nf6 {[%emt 0:00:05]} 2. c4 {[%emt 0:00:26]} e6 {[%emt 0:00:05]} 3. Nf3 {[%emt 0:02:51]} Bb4+ {[%emt 0:00:31]} 4. Nbd2 {[%emt 0:00:18]} O-O {[%emt 0:00:04]} 5. a3 {[%emt 0:00:27]} Be7 {[%emt 0:00:03]} 6. e4 {[%emt 0:01:28]} d6 {[%emt 0:00:06][%cal Oe6e5] CPLX 2.0 13 (d7-d5) (=13). E11: Bogo-Indian.} 7. Qc2 {[%emt 0:00:27] CPLX 2.0 12 (Bf1-e2) (=6)} Nfd7 {[%emt 0:00:31] BESTDEEP} 8. Nb1 {[%emt 0:06:08] CPLX 2.0 13 (Nd2-b3) (=8)} e5 {[%emt 0:00:39] BESTDEEP} 9. Nc3 {[%emt 0:00:12] CPLX 2.1 0 (Bc1-e3) (=6)} exd4 {[%emt 0:04:22] BESTDEEP} 10. Nxd4 {[%emt 0:00:09] RECAPT} Nc6 {[%emt 0:00:13] CPLX 2.1} 11. Nxc6 {[%emt 0:00:06] CPLX 2.4 0 (Bc1-e3) (=4)} bxc6 {[%emt 0:00:05] RECAPT} 12. Be2 {[%emt 0:00:06] CPLX 2.0} Bf6 {[%emt 0:03:41] CPLX 2.0} 13. Be3 {[%emt 0:03:06] CPLX 2.1} Re8 {[%emt 0:03:59] CPLX 2.3 11 (c6-c5) (=3)} 14. Rd1 {[%emt 0:01:39] [#] CPLX 2.3} Qe7 $146 {[%emt 0:04:54] CPLX 2.3} ({Predecessor:} 14... Ne5 15. O-O Ng4 16. Bxg4 Bxg4 17. f3 Be6 18. b3 Qb8 19. Ne2 c5 20. Nf4 Bg5 {1-0 (56) Petrosyan,M (2628)-Stupak,K (2515) Chess.com INT 2020}) 15. O-O {[%emt 0:03:03] CPLX 2.3} Ne5 {[%emt 0:05:11] RELBLUND 52 (a7-a5) (=8)} (15... a5 $11) 16. Rfe1 {[%emt 0:12:17] CPLX 2.4 52 (f2-f4) (=7)} (16. f4 $14) 16... Be6 $11 {[%emt 0:11:19] CPLX 2.4} 17. b3 {[%emt 0:01:42] CPLX 2.5 6 (Nc3-a4) (=7)} a5 {[%emt 0:04:23] BESTDEEP} 18. f4 {[%emt 0:06:50] CPLX 2.5 0 (Be3-c1) (=6)} Ng4 {[%emt 0:01:49] EASY} 19. Bc1 {[%emt 0:00:24][%mdl 8192] [#] RELBLUND 400 (Be2xg4) (=35)} (19. Bxg4 $11 Bxg4 20. Rd3) 19... d5 $2 {[%emt 0:04:51] MISSDEEPWIN-Bf6-d4 400 (Bf6-d4) (=34)} (19... Bd4+ $1 $19 {[%mdl 512]} 20. Rxd4 Qh4) 20. Na4 $2 {[%emt 0:07:14][%mdl 8192] [#] MISSDEEP-Be2xg4 400 (Be2xg4) (=59)} (20. cxd5 Qc5+) (20. Bxg4 $17 Bxg4 21. Rd2) 20... dxe4 $2 {[%emt 0:13:42] MISSDEEPWIN-Bf6-d4 400 (Bf6-d4) (=58)} (20... Bd4+ $1 $19 {[%mdl 512]} 21. Kh1 Nf2+ 22. Kg1 Nxd1+ 23. Kf1 Nf2 24. exd5 cxd5) 21. Qxe4 {[%emt 0:01:56] RECAPT} Nh6 {[%emt 0:04:23][%cal Bg4h6,Bh6f5,Bf5h4][%mdl 32] Prevents f5. BESTDEEP} 22. Bf3 {[%emt 0:08:22] CPLX 2.9 23 (h2-h3) (=53)} Nf5 {[%emt 0:07:31] CPLX 2.9} 23. g4 {[%emt 0:14:53] CPLX 2.8} (23. Qxc6 Bd4+ 24. Kh1 Qh4 $17) 23... Nh4 {[%emt 0:04:16][%cal Oe6g4] EASY} 24. Be2 {[%emt 0:01:00] BESTDEEP} (24. Qxc6 Nxf3+ 25. Qxf3 Bxg4 $1 {[%mdl 512]} 26. Qxa8 Rxa8 $17) 24... g6 {[%emt 0:04:35][%cal Oh7h5] Against f5. CPLX 3.2 21 (c6-c5) (=47)} 25. Qxc6 {[%emt 0:01:27] RELBLUND 130 (Qe4-e3) (=52)} (25. Qe3 $11) 25... Rad8 $17 {[%emt 0:04:24] CPLX 3.0=>BLUNDERREACT} 26. Qc5 {[%emt 0:02:27] [#] CPLX 3.1 89 (Qc6-e4) (=54)} (26. Qe4 $17 {might work better.}) 26... Rd6 $1 $19 {[%emt 0:03:25] DEEPSTRONG=>BLUNDERREACT} 27. Qf2 {[%emt 0:04:07] CPLX 3.1 4 (Qc5-e3) (=51)} (27. Qxa5 $2 {[#]} Bf5 $1 28. Nc3 Bxc3 29. Qxc3 Rxd1 30. Bxd1 Qxe1+ $19) 27... Bc8 {[%emt 0:05:06] CPLX 2.9 81 (Be6-d7) (=44)} 28. Rxd6 {[%emt 0:06:34] EASY} Qxd6 {[%emt 0:00:33] RECAPT} 29. Rd1 {[%emt 0:00:49] Inhibits Bd4. EASY} Qe6 {[%emt 0:04:22][%mdl 1024] Black has strong compensation. CPLX 3.1 30 (Qd6-c6) (=42)} 30. Rd2 {[%emt 0:01:33] CPLX 2.6 0 (g4-g5) (=45)} Qe4 {[%emt 0:01:01] CPLX 2.6 1 (Qe6-c6) (=40)} 31. Nc5 {[%emt 0:00:49] EASY} Qb1 {[%emt 0:00:21] CPLX 4.0} 32. Rd1 {[%emt 0:00:23] CPLX 4.0} Qc2 {[%emt 0:00:56] CPLX 3.2 0 (h7-h5) (=37)} 33. Be3 {[%emt 0:01:26] CPLX 3.3} Rxe3 {[%emt 0:02:51] RELBLUND 91 (Bf6-e7) (=39)} 34. Qxe3 $11 {[%emt 0:00:05] RECAPT} Bxg4 {[%emt 0:00:02] A strong pair of Bishops. EASY} 35. Nd7 {[%emt 0:00:41] CPLX 4.2 16 (Nc5-e4) (=38)} Bxd7 {[%emt 0:02:49] BESTDEEP} 36. Rxd7 {[%emt 0:00:06] Qe8+ would kill now. RECAPT} Kg7 $40 {[%emt 0:00:18][%mdl 128] White needs to defend precisely. BESTDEEP} 37. Qe8 {[%emt 0:01:53] CPLX 4.0 0 (Rd7-d1) (=36)} (37. Rxc7 Nf5 38. Qd3 (38. Qe8 Bd4+ 39. Kh1 Qb1+ 40. Kg2 Nh4+ 41. Kh3 Qxb3+) 38... Qc1+ 39. Bd1 Bd4+ 40. Kh1 Qxf4 $17) 37... Qc1+ {[%emt 0:00:03] CPLX 5.9} 38. Bd1 {[%emt 0:00:06] EASY} Kh6 $1 {[%emt 0:00:44] DEEPSTRONG} (38... Bd4+ $2 39. Rxd4 Nf3+ 40. Kf2 Nxd4 41. Qe5+ Kg8 42. Qxd4 $18) 39. Qf8+ {[%emt 0:00:44] CPLX 4.0 51 (Qe8-e2) (=35)} ({Of course not} 39. Qxf7 Qe3+ 40. Kf1 Qxf4+ 41. Ke2 Qxh2+ 42. Kd3 Qg3+ 43. Kd2 Qc3+ 44. Ke2 Qb2+ 45. Kd3 Nf5 46. Qxh7+ Kg5 $17) 39... Bg7 {[%emt 0:00:04] LEGAL} 40. Qe7 {[%emt 0:00:00] MISSDEEP-Qf8-c5 68 (Qf8-c5) (=36)} (40. Qc5 $1 $11 Nf5 41. Qf2 (41. Qxa5 $2 Qe3+ 42. Kf1 Bc3 $19)) 40... Qxf4 $15 {[%emt 0:00:00] EASY} 41. Qe1 {[%emt 0:00:00] DEEPSTRONG} ({But not} 41. Qxf7 $2 Bd4+ 42. Rxd4 Qxd4+ 43. Qf2 Qxd1+ $19) 41... Bd4+ {[%emt 0:00:00] EASY} 42. Kh1 {[%emt 0:00:00][%cal Od7f7] CPLX 4.6} c5 {[%emt 0:00:00] ...f6 is the strong threat. CPLX 4.4 11 (Kh6-g7) (=30)} 43. Re7 {[%emt 0:00:00] CPLX 4.6 11 (Rd7xf7) (=34)} Qg5 {[%emt 0:00:00][%csl Gh4][%cal Rg5g2] CPLX 4.4} 44. Re2 {[%emt 0:00:00] Inhibits Qg2+. EASY} f5 {[%emt 0:00:00] CPLX 3.8 70 (Kh6-g7) (=30)} ({Better is} 44... Kg7 $15) 45. Qg3 $11 {[%emt 0:00:00] CPLX 4.0} Qf6 {[%emt 0:00:00] BESTDEEP} 46. Qf4+ {[%emt 0:00:00] CPLX 4.2 0 (Qg3-c7) (=31)} g5 $1 {[%emt 0:00:00] CPLX 4.1} 47. Qc7 {[%emt 0:00:00] Strongly threatening Qd7. EASY} Ng6 {[%emt 0:00:00] CPLX 4.0} 48. Bc2 {[%emt 0:00:00] Hoping for Qc8. CPLX 3.8 36 (Qc7-c8) (=30)} f4 {[%emt 0:00:00] CPLX 3.8 36 (g5-g4) (=28)} (48... g4 $5 {[%cal Rf6g5]}) 49. Qd7 {[%emt 0:00:00] Threatens to win with Re6. CPLX 4.2 0 (Qc7-c8) (=30). The position is equal.} Be3 $1 {[%emt 0:01:16] DEEPSTRONG} 50. Bb1 {[%emt 0:00:00] MISS-Re2-e1 0 (Re2-e1) (=29)} Qa1 {[%emt 0:03:06] BESTDEEP} 51. Qh3+ {[%emt 0:00:00] CPLX 5.6 0 (Re2-e1) (=29)} Kg7 {[%emt 0:00:04] EASY} 52. Qd7+ {[%emt 0:00:00] CPLX 5.8 0 (Re2-e1) (=28)} Kh6 {[%emt 0:00:46] EASY} 53. Qh3+ {[%emt 0:00:00] CPLX 5.6 0 (Re2-e1) (=27)} Kg7 {[%emt 0:01:15] EASY} 54. Qd7+ {[%emt 0:00:00] CPLX 5.8 0 (Re2-e1) (=27)} Kh6 {[%emt 0:00:48] White happily takes the draw.  Weighted Error Value: White=0.31/Black=0.40} 1/2-1/2

[Event "Portuguese Chess-ch 2022"]
[Site "Leiria"]
[Date "2022.09.19"]
[Round "9.2"]
[White "Rego, Pedro Filipe"]
[Black "Veiga, Jose Francisco R P N"]
[Result "1/2-1/2"]
[ECO "C45"]
[WhiteElo "2273"]
[BlackElo "2389"]
[Annotator "TA"]
[PlyCount "118"]
[EventDate "2022.09.11"]
[EventCountry "POR"]
[SourceTitle "playchess.com"]
[Source "ChessBase"]
[SourceQuality "1"]
[TimeControl "5400+30"]

{[%evp 12,118,0,0,0,-8,0,0,0,0,0,0,0,0,0,0,0,0,0,0,0,-20,28,-16,-9,-29,-31,-42,-24,-19,0,0,36,14,31,37,6,0,42,43,48,0,16,19,47,13,29,0,60,52,211,86,111,44,126,0,85,25,29,25,26,0,0,-11,-7,-32,0,-21,-10,-14,-27,-13,15,-20,-15,-2,-22,-62,-64,-74,-35,-35,-37,-39,-36,-55,-37,-34,0,0,0,0,0,0,0,0,0,0,0,0,0,0,0,0,0,0,4,0,0]} 1. e4 {[%emt 0:00:05]} e5 {[%emt 0:02:09]} 2. Nf3 {[%emt 0:00:07]} Nc6 {[%emt 0:00:05]} 3. d4 {[%emt 0:00:08]} exd4 {[%emt 0:00:19]} 4. Nxd4 {[%emt 0:00:04]} Bc5 {[%emt 0:00:11]} 5. Nb3 {[%emt 0:00:07]} Bb6 {[%emt 0:00:27]} 6. Nc3 {[%emt 0:00:05]} Nf6 {[%emt 0:01:31]} 7. Bg5 {[%emt 0:01:32] CPLX 2.3} O-O $1 {[%emt 0:00:45][%mdl 4] is now more promising than 7...h6. C45: Scotch Game.} 8. Qe2 {[%emt 0:00:37] BESTDEEP} h6 {[%emt 0:01:04] CPLX 2.5 8 (Nc6-d4) (=4)} 9. Bh4 {[%emt 0:00:43] BESTDEEP} a5 {[%emt 0:01:13] BESTDEEP} 10. a4 $1 {[%emt 0:00:17] DEEPSTRONG} Nd4 {[%emt 0:00:56] BESTDEEP} 11. Qd3 {[%emt 0:00:36] BESTDEEP} Nxb3 {[%emt 0:00:04] CPLX 2.8} 12. cxb3 {[%emt 0:00:05] RECAPT} c6 {[%emt 0:00:15] BESTDEEP} 13. O-O-O {[%emt 0:00:41] BESTDEEP} d5 {[%emt 0:00:17] CPLX 2.5} 14. Qc2 {[%emt 0:00:38]} Qd6 {[%emt 0:07:42] CPLX 2.8 0 (d5-d4) (=1)} 15. Kb1 {[%emt 0:00:22] BESTDEEP} d4 {[%emt 0:05:49] CPLX 2.8} 16. Bc4 {[%emt 0:02:01] CPLX 2.9 20 (f2-f3) (=2)} Qe7 {[%emt 0:04:46] [#] CPLX 3.2 48 (Qd6-f4) (=6)} (16... Qf4 $142 17. Bg3 Qg5) 17. Bxf6 $146 {[%emt 0:24:05] CPLX 3.3 44 (f2-f4) (=6)} (17. f4 {is more complex.} dxc3 18. e5 Qc5 19. Bxf6 Qf2 20. Be7) ({Predecessor:} 17. Rhe1 g5 18. e5 Nh5 19. Qg6+ Ng7 20. Qxh6 Bf5+ 21. Ka2 Bd8 22. Ne4 Qxe5 23. Nxg5 {1-0 (35) Dukic,Z (2226)-Barron,M (2108) Kingston 2022}) 17... Qxf6 {[%emt 0:00:16] RECAPT} 18. Na2 {[%emt 0:05:21][%cal Bc3a2,Ba2c1,Bc1d3][%mdl 32] CPLX 2.8 20 (Nc3-e2) (=7)} Re8 {[%emt 0:02:32][%cal Oe8e4] aiming for ...Rxe4! BESTDEEP} 19. Rhe1 {[%emt 0:02:37] BESTDEEP} Bg4 {[%emt 0:12:07] CPLX 2.6 18 (Bc8-d7) (=6)} 20. f3 {[%emt 0:00:16] EASY} Bh5 {[%emt 0:00:03] CPLX 3.0 19 (Bg4-e6) (=7)} 21. Nc1 {[%emt 0:00:10][%cal Oe4e5] CPLX 2.7} Bg6 {[%emt 0:01:05] CPLX 2.7 36 (Bb6-c7) (=9)} 22. Nd3 {[%emt 0:00:25] CPLX 2.7} Bc7 {[%emt 0:01:42] CPLX 2.8 17 (Kg8-h8) (=9)} 23. Qf2 {[%emt 0:00:50] BESTDEEP} Rad8 {[%emt 0:01:36] CPLX 2.9 0 (Bg6-h7) (=9)} ({Weaker is} 23... Bxh2 24. g3 $16) 24. g3 {[%emt 0:06:10] CPLX 2.9} Re7 {[%emt 0:06:21] CPLX 2.8 42 (Kg8-h8) (=10)} 25. Ka2 {[%emt 0:02:50] CPLX 2.8} Kh8 {[%emt 0:01:41] CPLX 2.8 5 (h6-h5) (=10)} 26. Rc1 {[%emt 0:02:35] CPLX 2.6 48 (g3-g4) (=7)} (26. g4 $14 {was preferrable.}) 26... Rde8 {[%emt 0:02:00] CPLX 2.6 16 (Bg6-h7) (=10)} 27. Re2 {[%emt 0:02:07] BESTDEEP} Bd6 {[%emt 0:01:44] CPLX 2.6 28 (b7-b6) (=11)} 28. Rd2 {[%emt 0:01:59] CPLX 2.7 34 (h2-h4) (=8)} Rd7 {[%emt 0:03:21] CPLX 2.7 16 (Bg6-h7) (=12)} 29. Rcd1 {[%emt 0:03:20] CPLX 2.7 29 (h2-h4) (=8)} Bh5 {[%emt 0:03:15] RELBLUND 60 (Bd6-c7) (=14)} (29... Bc7 $11) 30. Rf1 {[%emt 0:02:02] CPLX 2.9 8 (g3-g4) (=8)} (30. g4 $5 {[%cal Rg4h5]} Bg6 31. h4 $11) 30... Kh7 $2 {[%emt 0:00:40] RELBLUND 159 (Bh5-g6) (=20)} (30... Bg6 $14) 31. Rdd1 {[%emt 0:05:01] CPLX 2.8 125 (g3-g4) (=13)} (31. g4 $18) 31... Bg6 {[%emt 0:00:58] CPLX 2.8 25 (Kh7-h8) (=20)} 32. Rfe1 {[%emt 0:00:36] CPLX 2.7 67 (h2-h4) (=15)} ({White should play} 32. h4 $16) 32... Rde7 {[%emt 0:01:13] CPLX 2.7 82 (Qf6-e7) (=22)} (32... Qe7 $14) 33. Rf1 {[%emt 0:01:22] CPLX 2.7 126 (g3-g4) (=19)} ({White should try} 33. g4 $16) 33... Bb8 {[%emt 0:00:35] [#] RELBLUND 85 (Re7-d7) (=25)} (33... Rd7 $1 $11) 34. Qd2 {[%emt 0:01:14] RELBLUND 60 (h2-h4) (=21)} (34. h4 $1 $16) 34... Kh8 {[%emt 0:00:37] CPLX 2.6 4 (Kh7-g8) (=24)} 35. Nf4 {[%emt 0:01:36] BESTDEEP} Bh7 $1 {[%emt 0:01:42] DEEPSTRONG} 36. Nd3 {[%emt 0:03:10] MISS-Qd2xd4 26 (Qd2xd4) (=20)} ({Don't play} 36. Qxa5 b5 37. Bd3 (37. axb5 $2 Ra7 $19) 37... bxa4 38. bxa4 Ra7 $17) 36... Bc7 {[%emt 0:02:02] CPLX 2.6 0 (b7-b6) (=22)} 37. Nc5 {[%emt 0:00:47] CPLX 2.6 11 (Qd2-f2) (=20)} b6 {[%emt 0:02:26] CPLX 2.8 4 (Re8-b8) (=22)} 38. Nd3 {[%emt 0:03:00] CPLX 2.9 25 (Nc5-a6) (=20)} Qg5 {[%emt 0:00:49] CPLX 2.6 32 (Qf6-d6) (=22)} 39. Nf4 {[%emt 0:02:17] CPLX 2.8 21 (b3-b4) (=20)} Be5 {[%emt 0:02:10] CPLX 2.8 11 (Re8-d8) (=22)} 40. Nd3 {[%emt 0:00:00] [#] f4 is the strong threat. BESTDEEP} Qxd2 {[%emt 0:00:00] CPLX 2.9} 41. Rxd2 {[%emt 0:00:00] RECAPT} Bc7 {[%emt 0:00:00] CPLX 2.3 28 (Be5-d6) (=21)} 42. Nf4 {[%emt 0:00:00] CPLX 2.2 35 (b3-b4) (=19)} Rd8 {[%emt 0:00:00] CPLX 2.4} 43. Rfd1 {[%emt 0:00:00] CPLX 2.4} Red7 {[%emt 0:00:00] CPLX 2.5 0 (Bc7xf4) (=20)} 44. b4 {[%emt 0:00:00] CPLX 2.4 40 (Nf4-e2) (=19)} axb4 {[%emt 0:00:00] CPLX 2.6} 45. Kb3 {[%emt 0:00:00] CPLX 2.5} Bxf4 {[%emt 0:00:00] CPLX 2.9 39 (c6-c5) (=20)} 46. gxf4 {[%emt 0:00:00] RECAPT} c5 {[%emt 0:00:00] EASY} 47. f5 {[%emt 0:00:00] Against Bg6. CPLX 2.7} Ra7 {[%emt 0:00:00] CPLX 2.8} 48. Ra1 {[%emt 0:00:00] BESTDEEP} f6 {[%emt 0:00:00] CPLX 2.8 18 (h6-h5) (=19)} 49. Be6 {[%emt 0:00:00] CPLX 2.9} Ra5 {[%emt 0:12:22] CPLX 2.9 34 (Bh7-g8) (=19)} 50. Kc4 $1 {[%emt 0:02:52] DEEPSTRONG. The position is equal.} Rb8 {[%emt 0:00:42] CPLX 3.0 0 (Bh7-g8) (=19)} 51. b3 {[%emt 0:06:20] CPLX 2.9} b5+ {[%emt 0:06:26] BESTDEEP} 52. Kxc5 {[%emt 0:00:34] EASY} bxa4+ {[%emt 0:00:11] EASY} 53. Kxd4 {[%emt 0:00:04] CPLX 2.5} a3 {[%emt 0:00:41] EASY} 54. Kc4 {[%emt 0:00:21] CPLX 2.8} Ra7 {[%emt 0:05:11] BESTDEEP} 55. Rd5 {[%emt 0:03:32] BESTDEEP} Rc7+ {[%emt 0:02:04] CPLX 2.5 0 (Ra7-b7) (=17)} 56. Rc5 {[%emt 0:00:42] EASY} Rcb7 {[%emt 0:00:04] BESTDEEP} 57. h4 {[%emt 0:01:50] CPLX 2.5 0 (Ra1-a2) (=14)} Bg8 {[%emt 0:01:37] CPLX 2.5} 58. Bd5 {[%emt 0:02:09] CPLX 2.9} Bxd5+ {[%emt 0:02:40] CPLX 3.2 4 (Kh8-h7) (=16)} 59. exd5 {[%emt 0:00:38] RECAPT} Kg8 {[%emt 0:02:35] Weighted Error Value: White=0.15 (very precise) /Black=0.19 (very precise)} 1/2-1/2